bitfinex/quotes_BTCUSD_20250730
["timestamp","ask_amount","ask_price","bid_price","bid_amount"]
[1753906384262,0.88203398,117430.0,117410.0,0.14744]
[1753906384466,3.036236,117420.0,117410.0,0.08436]
[1753906384670,0.00121,117420.0,117410.0,0.08148533]
[1753906385083,0.00121,117420.0,117410.0,0.08450533]
[1753906385537,1.02982128,117430.0,117420.0,0.0661]
[1753906385538,0.4754,117430.0,117420.0,0.0661]
[1753906385749,0.4754,117430.0,117420.0,0.47454398]
[1753906385962,0.4744,117430.0,117420.0,0.55890398]
[1753906386586,0.34,117430.0,117420.0,0.55890398]
[1753906386799,0.4744,117430.0,117420.0,0.55890398]
[1753906387267,0.1344,117430.0,117420.0,0.55890398]
[1753906387482,0.15385844,117430.0,117420.0,0.55890398]
[1753906387714,0.51945844,117430.0,117420.0,0.55890398]
[1753906387934,0.51945844,117430.0,117420.0,0.64338128]
[1753906387935,0.01945844,117430.0,117420.0,0.64338128]
[1753906388387,0.4744,117440.0,117430.0,0.0661]
[1753906388591,0.4744,117440.0,117430.0,0.47454398]
[1753906388782,0.49336231,117440.0,117430.0,0.55890398]
[1753906389336,0.49336231,117440.0,117430.0,0.15248]
[1753906389540,0.49336231,117440.0,117430.0,0.55890398]
[1753906389744,0.49336231,117440.0,117430.0,0.56290398]
[1753906391192,0.49336231,117440.0,117430.0,0.56490398]
[1753906391389,0.35896231,117440.0,117430.0,0.56490398]
[1753906391598,0.49332231,117440.0,117430.0,0.56490398]
[1753906392609,0.49332231,117440.0,117430.0,0.15848]
[1753906392812,0.49332231,117440.0,117430.0,0.56490398]
[1753906392926,0.49332231,117440.0,117430.0,0.15848]
[1753906393148,0.54265454,117440.0,117430.0,0.12538]
[1753906393580,0.54386454,117440.0,117430.0,0.09238]
[1753906393789,0.49453231,117440.0,117430.0,0.006]
[1753906394000,3.93719229,117440.0,117430.0,0.006]
[1753906394254,4.00387229,117440.0,117430.0,0.006]
[1753906394516,4.03407229,117440.0,117430.0,0.006]
[1753906394758,3.62764831,117440.0,117430.0,0.006]
[1753906394995,0.34,117430.0,117410.0,0.14780533]
[1753906395266,0.47432,117430.0,117410.0,0.14780533]
[1753906395478,0.47432,117430.0,117420.0,0.08134]
[1753906395725,0.47553,117430.0,117420.0,0.08134]
[1753906395976,0.63432,117430.0,117420.0,0.14968]
[1753906396222,0.63553,117430.0,117410.0,0.08248533]
[1753906396474,0.63553,117430.0,117410.0,0.14880533]
[1753906396722,0.63553,117430.0,117410.0,0.14980533]
[1753906396958,0.63553,117430.0,117410.0,0.14780533]
[1753906397176,0.63553,117430.0,117420.0,0.08134]
[1753906397594,0.13553,117430.0,117420.0,0.08134]
[1753906397818,0.63553,117430.0,117420.0,0.08134]
[1753906398079,0.34121,117430.0,117420.0,0.08234]
[1753906398345,0.34,117430.0,117420.0,0.55003745]
[1753906398585,0.34,117430.0,117420.0,0.15268]
[1753906402537,0.34121,117430.0,117420.0,0.15268]
[1753906402753,0.34,117430.0,117420.0,0.15268]
[1753906403617,0.01896231,117440.0,117430.0,0.0633]
[1753906403831,3.036236,117440.0,117430.0,0.63151475]
[1753906405201,0.15306413,117440.0,117430.0,0.63151475]
[1753906405451,0.15306413,117440.0,117430.0,0.2341573]
[1753906405713,0.15306413,117440.0,117430.0,0.63151475]
[1753906406020,0.01878413,117440.0,117430.0,0.63151475]
[1753906406252,3.036236,117440.0,117430.0,0.63151475]
[1753906406972,3.036236,117440.0,117430.0,0.2341573]
[1753906407932,3.05552584,117440.0,117430.0,0.2341573]
[1753906408166,0.01928984,117440.0,117430.0,0.2341573]
[1753906408407,3.036236,117440.0,117430.0,0.3683973]
[1753906408637,0.13428,117450.0,117430.0,0.2341573]
[1753906408878,3.036236,117440.0,117430.0,0.1507473]
[1753906409153,3.036236,117440.0,117430.0,0.06832]
[1753906409389,0.00121,117440.0,117430.0,0.06832]
[1753906409667,3.036236,117440.0,117430.0,0.15306]
[1753906410818,0.13528,117450.0,117430.0,0.15306]
[1753906411030,0.6542192,117450.0,117430.0,0.15306]
[1753906411240,0.4942192,117450.0,117440.0,0.08474]
[1753906411438,0.4944292,117450.0,117440.0,0.08474]
[1753906411883,0.4943492,117450.0,117440.0,0.15306]
[1753906412725,0.54717612,117450.0,117440.0,0.08474]
[1753906413245,0.54817612,117450.0,117440.0,0.08474]
[1753906413411,0.4963492,117450.0,117440.0,0.08474]
[1753906413641,0.4953492,117450.0,117440.0,0.08474]
[1753906413847,0.4963492,117450.0,117440.0,0.08474]
[1753906414485,0.4963492,117450.0,117440.0,0.08771]
[1753906414689,0.4963492,117450.0,117440.0,0.15306]
[1753906415101,0.0209392,117450.0,117440.0,0.63489475]
[1753906415272,0.1550992,117450.0,117440.0,0.63489475]
[1753906415451,0.0209392,117450.0,117440.0,0.63489475]
[1753906415860,0.0199392,117450.0,117440.0,0.63489475]
[1753906416065,0.0189392,117450.0,117440.0,0.63489475]
[1753906416316,0.13416,117460.0,117440.0,0.57159475]
[1753906416516,0.47416,117470.0,117460.0,0.0633]
[1753906416664,0.48214459,117470.0,117460.0,0.06535]
[1753906416873,0.48214459,117470.0,117460.0,0.15306]
[1753906417068,0.34798459,117470.0,117460.0,0.55041745]
[1753906417328,0.48214459,117470.0,117460.0,0.15306]
[1753906417568,0.34798459,117470.0,117460.0,0.15306]
[1753906417789,4.848e-05,117470.0,117460.0,0.94996732]
[1753906418002,4.848e-05,117470.0,117460.0,0.9648652]
[1753906418460,4.848e-05,117470.0,117460.0,0.95635218]
[1753906418679,4.848e-05,117470.0,117460.0,0.95735218]
[1753906418898,4.848e-05,117470.0,117460.0,0.77005475]
[1753906419107,4.848e-05,117470.0,117460.0,0.77205475]
[1753906419254,4.848e-05,117470.0,117460.0,0.95835247]
[1753906419471,4.848e-05,117470.0,117460.0,0.76905475]
[1753906419705,4.848e-05,117470.0,117460.0,0.77301475]
[1753906420136,4.848e-05,117470.0,117460.0,0.63889475]
[1753906420350,4.848e-05,117470.0,117460.0,0.78652828]
[1753906420505,4.848e-05,117470.0,117460.0,0.64389475]
[1753906420715,4.848e-05,117470.0,117460.0,0.77801475]
[1753906421396,4.848e-05,117470.0,117460.0,0.64389475]
[1753906421692,4.848e-05,117470.0,117460.0,0.77801475]
[1753906422327,4.848e-05,117470.0,117460.0,0.77401475]
[1753906422739,4.848e-05,117470.0,117460.0,0.77201475]
[1753906423150,4.848e-05,117470.0,117460.0,0.96131232]
[1753906423568,4.848e-05,117470.0,117460.0,0.97833858]
[1753906424850,4.848e-05,117470.0,117460.0,0.97833866]
[1753906425061,4.848e-05,117470.0,117460.0,0.98685168]
[1753906427015,4.848e-05,117470.0,117460.0,0.96982556]
[1753906427221,4.848e-05,117470.0,117460.0,0.98685168]
[1753906428461,4.848e-05,117470.0,117460.0,0.98185168]
[1753906428697,4.848e-05,117470.0,117460.0,0.98785168]
[1753906428909,4.848e-05,117470.0,117460.0,0.99285168]
[1753906431085,4.848e-05,117470.0,117460.0,0.95879887]
[1753906431291,4.848e-05,117470.0,117460.0,0.96731218]
[1753906431719,4.848e-05,117470.0,117460.0,0.98433859]
[1753906431928,4.848e-05,117470.0,117460.0,0.99285169]
[1753906432087,4.848e-05,117470.0,117460.0,0.99285132]
[1753906432310,4.848e-05,117470.0,117460.0,0.96731203]
[1753906432520,4.848e-05,117470.0,117460.0,0.9758252]
[1753906432754,4.848e-05,117470.0,117460.0,0.96731203]
[1753906433137,4.848e-05,117470.0,117460.0,0.97582556]
[1753906433546,4.848e-05,117470.0,117460.0,0.98433866]
[1753906433785,4.848e-05,117470.0,117460.0,0.98433873]
[1753906434119,4.848e-05,117470.0,117460.0,0.96731218]
[1753906434248,4.848e-05,117470.0,117460.0,0.97582549]
[1753906434460,4.848e-05,117470.0,117460.0,0.96731225]
[1753906434654,4.848e-05,117470.0,117460.0,0.97582549]
[1753906434838,4.848e-05,117470.0,117460.0,0.98433859]
[1753906435245,4.848e-05,117470.0,117460.0,0.98433866]
[1753906436148,4.848e-05,117470.0,117460.0,0.96731225]
[1753906436750,4.848e-05,117470.0,117460.0,0.97582549]
[1753906436987,4.848e-05,117470.0,117460.0,0.98433866]
[1753906437313,4.848e-05,117470.0,117460.0,0.97582549]
[1753906437558,4.848e-05,117470.0,117460.0,0.98433866]
[1753906437769,4.848e-05,117470.0,117460.0,0.99285168]
[1753906437984,4.848e-05,117470.0,117460.0,0.98433866]
[1753906438426,4.848e-05,117470.0,117460.0,0.99285168]
[1753906438571,4.848e-05,117470.0,117460.0,0.99285176]
[1753906438775,4.848e-05,117470.0,117460.0,0.9843383]
[1753906438978,4.848e-05,117470.0,117460.0,0.99285132]
[1753906439178,4.848e-05,117470.0,117460.0,0.9843383]
[1753906439582,4.848e-05,117470.0,117460.0,0.99285132]
[1753906440011,4.848e-05,117470.0,117460.0,0.9843383]
[1753906440213,4.848e-05,117470.0,117460.0,0.99285132]
[1753906440978,4.848e-05,117470.0,117460.0,1.03530034]
[1753906443066,4e-05,117500.0,117480.0,0.18725212]
[1753906443298,4e-05,117500.0,117490.0,0.76527259]
[1753906443299,8.847e-05,117500.0,117490.0,0.76527259]
[1753906443501,0.00129847,117500.0,117490.0,0.75791475]
[1753906443994,0.00129847,117500.0,117490.0,0.931272]
[1753906444210,0.03247847,117500.0,117490.0,0.2183173]
[1753906444438,0.03247847,117500.0,117490.0,0.61567475]
[1753906444651,0.09473847,117500.0,117490.0,0.0844773]
[1753906444888,0.15764203,117500.0,117480.0,0.001]
[1753906445119,0.93344,117490.0,117480.0,0.001]
[1753906445357,3.036236,117490.0,117480.0,0.001]
[1753906445570,3.036236,117490.0,117480.0,0.006]
[1753906445788,0.0844773,117490.0,117480.0,0.006]
[1753906446231,0.06299203,117500.0,117480.0,0.001]
[1753906446429,3.036236,117490.0,117480.0,0.001]
[1753906446661,3.036236,117490.0,117480.0,0.002]
[1753906446879,3.036236,117490.0,117470.0,0.13384]
[1753906447103,3.036236,117490.0,117480.0,0.001]
[1753906448290,0.1320773,117490.0,117480.0,0.001]
[1753906448720,0.53841756,117490.0,117480.0,0.001]
[1753906448963,3.1683133,117490.0,117480.0,0.001]
[1753906449614,3.5083133,117490.0,117480.0,0.001]
[1753906450355,3.557636,117490.0,117480.0,0.001]
[1753906451950,0.5214,117490.0,117480.0,0.001]
[1753906452131,3.557636,117490.0,117480.0,0.001]
[1753906452374,4.05656191,117490.0,117480.0,0.001]
[1753906452774,3.65956232,117490.0,117480.0,0.001]
[1753906453117,3.74403962,117490.0,117480.0,0.001]
[1753906453532,3.423836,117490.0,117480.0,0.001]
[1753906453756,3.557596,117490.0,117480.0,0.001]
[1753906453966,3.406336,117490.0,117480.0,0.001]
[1753906454175,0.47376,117490.0,117480.0,0.47503959]
[1753906454833,0.47376,117490.0,117480.0,0.07804]
[1753906455906,0.04768847,117500.0,117480.0,0.48026959]
[1753906455907,8.847e-05,117500.0,117480.0,0.48026959]
[1753906456134,8.847e-05,117500.0,117490.0,0.47403959]
[1753906456325,8.847e-05,117500.0,117490.0,0.07704]
[1753906456542,0.50008847,117500.0,117490.0,0.07704]
[1753906456741,0.34008847,117500.0,117490.0,0.07704]
[1753906457388,0.34008847,117500.0,117490.0,0.07804]
[1753906459375,3.43014903,117500.0,117490.0,0.001]
[1753906459579,3.47774903,117500.0,117490.0,0.001]
[1753906460475,3.97667494,117500.0,117490.0,0.001]
[1753906460985,3.57967535,117500.0,117490.0,0.001]
[1753906461371,3.23958688,117500.0,117490.0,0.001]
[1753906462445,3.18576232,117500.0,117490.0,0.001]
[1753906463453,0.51511832,117500.0,117490.0,0.001]
[1753906463693,3.55135432,117500.0,117490.0,0.001]
[1753906465708,3.55233432,117500.0,117490.0,0.001]
[1753906465855,3.55227474,117500.0,117490.0,0.001]
[1753906466055,3.58712341,117500.0,117490.0,0.001]
[1753906466568,3.55227474,117500.0,117490.0,0.001]
[1753906468871,3.55129474,117500.0,117490.0,0.001]
[1753906469047,3.53379474,117500.0,117490.0,0.001]
[1753906470992,3.94024588,117500.0,117490.0,0.001]
[1753906475948,3.91020546,117500.0,117490.0,0.07744]
[1753906476166,3.63735432,117500.0,117490.0,0.08038]
[1753906476583,3.63735432,117500.0,117490.0,0.14536]
[1753906477353,3.63735432,117500.0,117490.0,0.08246]
[1753906477785,0.60111832,117500.0,117490.0,0.08246]
[1753906478036,3.63735432,117500.0,117490.0,0.11256]
[1753906478257,3.63735432,117500.0,117490.0,0.14536]
[1753906479225,3.535388,117500.0,117490.0,0.14536]
[1753906479438,3.509796,117500.0,117490.0,0.14536]
[1753906480284,3.036236,117500.0,117490.0,0.55181114]
[1753906480513,3.376236,117500.0,117490.0,0.55181114]
[1753906480750,3.509756,117500.0,117490.0,0.55181114]
[1753906481193,3.509756,117500.0,117490.0,0.14536]
[1753906481396,3.5942333,117500.0,117490.0,0.14536]
[1753906481614,3.509756,117500.0,117490.0,0.14536]
[1753906483128,3.509756,117500.0,117490.0,0.55181114]
[1753906484566,0.47352,117500.0,117490.0,0.55181114]
[1753906484956,0.47352,117500.0,117490.0,0.14536]
[1753906486295,0.47352,117500.0,117490.0,0.55181114]
[1753906486510,0.34,117500.0,117490.0,0.55181114]
[1753906486694,0.03429711,117510.0,117500.0,0.0636]
[1753906486896,3.37672075,117510.0,117500.0,0.14506]
[1753906487160,3.51020075,117510.0,117500.0,0.14506]
[1753906488285,3.53917579,117510.0,117500.0,0.14506]
[1753906492221,0.50293979,117510.0,117500.0,0.14506]
[1753906493579,3.53917579,117510.0,117500.0,0.14506]
[1753906493799,3.376236,117500.0,117490.0,0.0636]
[1753906494013,3.376236,117490.0,117480.0,0.14298]
[1753906494232,0.4734,117490.0,117480.0,0.14298]
[1753906495094,0.34,117490.0,117480.0,0.55151114]
[1753906495311,0.02945979,117510.0,117480.0,0.97883958]
[1753906495520,1.00281979,117510.0,117500.0,0.47005114]
[1753906495738,0.50281979,117510.0,117500.0,0.14903]
[1753906496144,0.50281979,117510.0,117500.0,0.14693]
[1753906496352,0.55568067,117510.0,117500.0,0.14693]
[1753906497657,0.50281979,117510.0,117500.0,0.14693]
[1753906499786,0.50281979,117510.0,117490.0,0.14693]
[1753906499787,0.34,117500.0,117490.0,0.14693]
[1753906500000,0.47332,117500.0,117490.0,0.14693]
[1753906500436,0.34,117500.0,117490.0,0.14903]
[1753906500702,0.34,117500.0,117490.0,0.55548114]
[1753906502126,0.34949448,117500.0,117490.0,0.14903]
[1753906502559,0.34949448,117500.0,117490.0,0.15003]
[1753906502772,0.34,117500.0,117490.0,0.15003]
[1753906503459,3.376236,117500.0,117490.0,0.15003]
[1753906505239,3.509556,117500.0,117490.0,0.15003]
[1753906507248,3.376236,117500.0,117490.0,0.15003]
[1753906507462,0.34,117500.0,117490.0,0.55648114]
[1753906507687,0.34,117500.0,117490.0,0.15003]
[1753906509538,0.47328,117500.0,117490.0,0.15003]
[1753906510169,0.47328,117500.0,117490.0,0.55648114]
[1753906510811,0.47328,117500.0,117490.0,0.15003]
[1753906511643,0.47324,117500.0,117490.0,0.15003]
[1753906513009,0.34,117500.0,117490.0,0.15003]
[1753906514812,0.34,117500.0,117490.0,0.55648114]
[1753906515383,0.34,117500.0,117490.0,0.68968114]
[1753906516235,0.34,117500.0,117490.0,0.28323]
[1753906517311,0.34,117500.0,117490.0,0.68968114]
[1753906519718,0.34,117500.0,117490.0,0.28323]
[1753906520005,0.34,117500.0,117490.0,0.68968114]
[1753906521413,0.34,117500.0,117490.0,0.55648114]
[1753906523155,0.34,117500.0,117490.0,0.15003]
[1753906523346,0.34,117500.0,117490.0,0.55648114]
[1753906524851,0.34,117500.0,117490.0,0.15003]
[1753906527644,0.47312,117500.0,117490.0,0.15003]
[1753906529073,0.52337798,117500.0,117490.0,0.15003]
[1753906530279,0.47312,117500.0,117490.0,0.15003]
[1753906531118,0.47312,117500.0,117490.0,0.14472]
[1753906531364,0.47312,117500.0,117490.0,0.14998]
[1753906531602,0.13312,117500.0,117490.0,0.14998]
[1753906532039,0.43591093,117510.0,117490.0,0.14998]
[1753906532248,0.56899093,117510.0,117490.0,0.14998]
[1753906532745,0.16253979,117510.0,117500.0,0.14307]
[1753906533176,0.56899093,117510.0,117500.0,0.11007]
[1753906533620,0.90899093,117510.0,117500.0,0.11007]
[1753906534379,0.99346823,117510.0,117500.0,0.11007]
[1753906534583,4.02970423,117510.0,117500.0,0.033]
[1753906535000,3.62325309,117510.0,117500.0,0.033]
[1753906535291,4.02970423,117510.0,117500.0,0.033]
[1753906535750,4.02970423,117510.0,117500.0,0.11007]
[1753906538850,4.02970423,117510.0,117500.0,0.09507]
[1753906539351,0.34,117500.0,117490.0,0.033]
[1753906539561,0.87949114,117500.0,117490.0,0.033]
[1753906539783,0.34,117500.0,117490.0,0.11331]
[1753906539996,0.47304,117500.0,117490.0,0.11533]
[1753906541102,0.34,117500.0,117490.0,0.11533]
[1753906541326,0.34,117500.0,117490.0,0.11633]
[1753906541551,0.473,117500.0,117490.0,0.11633]
[1753906542001,0.473,117500.0,117490.0,0.14933]
[1753906542414,0.02945979,117510.0,117490.0,0.08333]
[1753906542633,0.07696162,117510.0,117500.0,0.066]
[1753906542846,0.20996162,117510.0,117500.0,0.14833]
[1753906543486,0.16245979,117510.0,117500.0,0.14833]
[1753906543677,0.50245979,117510.0,117500.0,0.14833]
[1753906546913,0.90891093,117510.0,117500.0,0.14833]
[1753906547109,0.50245979,117510.0,117500.0,0.14833]
[1753906547311,0.90891093,117510.0,117500.0,0.14833]
[1753906550016,0.99338823,117510.0,117480.0,0.00324]
[1753906550224,0.99338823,117510.0,117490.0,0.0327]
[1753906550225,0.34,117500.0,117490.0,0.0327]
[1753906550435,0.74645114,117500.0,117490.0,0.10977]
[1753906550641,0.74645114,117500.0,117490.0,0.14017]
[1753906550934,0.74645114,117500.0,117490.0,0.14341]
[1753906552036,0.74645114,117500.0,117490.0,0.14441]
[1753906552446,0.74645114,117500.0,117490.0,0.14117]
[1753906552447,0.78284006,117500.0,117490.0,0.14117]
[1753906552657,0.34,117500.0,117490.0,0.14117]
[1753906553105,0.47292,117500.0,117490.0,0.14643]
[1753906563884,3.91560714,117500.0,117490.0,0.001]
[1753906564089,4.06048444,117500.0,117490.0,0.001]
[1753906564303,4.08607644,117500.0,117490.0,0.001]
[1753906564521,3.7641026,117500.0,117490.0,0.001]
[1753906564747,4.17055374,117500.0,117490.0,0.001]
[1753906567904,3.7641026,117500.0,117490.0,0.001]
[1753906568112,1.13431774,117500.0,117490.0,0.001]
[1753906568344,4.14015374,117500.0,117490.0,0.001]
[1753906569242,4.17135374,117500.0,117490.0,0.001]
[1753906569877,4.14015374,117500.0,117490.0,0.001]
[1753906570549,4.17135374,117500.0,117490.0,0.001]
[1753906572762,4.11015374,117500.0,117490.0,0.001]
[1753906573850,4.17135374,117500.0,117490.0,0.001]
[1753906574074,4.11015374,117500.0,117490.0,0.001]
[1753906574272,4.14015374,117500.0,117490.0,0.001]
[1753906574622,4.11015374,117500.0,117490.0,0.001]
[1753906575268,4.12760276,117500.0,117490.0,0.001]
[1753906575472,4.18880276,117500.0,117490.0,0.001]
[1753906575684,4.20582287,117500.0,117490.0,0.001]
[1753906576088,4.21433314,117500.0,117490.0,0.001]
[1753906576242,4.21433314,117500.0,117470.0,0.10735]
[1753906576243,3.036236,117490.0,117470.0,0.13765]
[1753906576455,0.53925114,117480.0,117470.0,0.13765]
[1753906577941,0.53925114,117480.0,117470.0,0.13865]
[1753906581852,0.87925114,117480.0,117470.0,0.13865]
[1753906582194,0.90484514,117480.0,117470.0,0.13865]
[1753906586442,4.43200958,117480.0,117470.0,0.001]
[1753906586640,4.5339359,117480.0,117470.0,0.001]
[1753906587017,4.49448244,117480.0,117470.0,0.001]
[1753906587217,4.35321101,117480.0,117470.0,0.001]
[1753906587422,3.93464257,117480.0,117470.0,0.07885]
[1753906587674,3.93464257,117480.0,117470.0,0.001]
[1753906587675,4.40149371,117480.0,117470.0,0.001]
[1753906587935,4.42702865,117480.0,117470.0,0.001]
[1753906588337,4.59727104,117480.0,117470.0,0.001]
[1753906588510,1.59018644,117480.0,117470.0,0.001]
[1753906588713,4.91089974,117480.0,117470.0,0.001]
[1753906588913,5.35078788,117480.0,117470.0,0.001]
[1753906589154,5.62696788,117480.0,117470.0,0.001]
[1753906589547,5.62796788,117480.0,117470.0,0.001]
[1753906589750,5.68005483,117480.0,117470.0,0.001]
[1753906589975,5.58930483,117480.0,117470.0,0.001]
[1753906590409,5.59030483,117480.0,117470.0,0.001]
[1753906591010,5.61464385,117480.0,117470.0,0.001]
[1753906591211,5.64308758,117480.0,117470.0,0.001]
[1753906592088,6.04953872,117480.0,117470.0,0.001]
[1753906592294,5.64308758,117480.0,117470.0,0.001]
[1753906592507,3.05424947,117480.0,117470.0,0.001]
[1753906592736,6.09048547,117480.0,117470.0,0.001]
[1753906592924,5.73183547,117480.0,117470.0,0.001]
[1753906593128,5.73083547,117480.0,117470.0,0.001]
[1753906593357,3.536236,117420.0,117410.0,0.0636]
[1753906593586,3.99988444,117420.0,117410.0,0.0636]
[1753906593801,4.08436174,117420.0,117410.0,0.0636]
[1753906594035,4.08436174,117420.0,117410.0,0.14145]
[1753906594521,3.99988444,117420.0,117410.0,0.14145]
[1753906594737,3.99988444,117420.0,117410.0,0.14157528]
[1753906595182,4.03346157,117420.0,117410.0,0.14157528]
[1753906595420,4.04239481,117420.0,117410.0,0.14157528]
[1753906596148,4.04239481,117420.0,117410.0,0.14657528]
[1753906596373,4.12687211,117420.0,117410.0,0.14657528]
[1753906596632,4.12687211,117420.0,117410.0,0.14357528]
[1753906596865,4.12687211,117420.0,117410.0,0.14657528]
[1753906597297,4.15248211,117420.0,117410.0,0.14657528]
[1753906597508,4.16581176,117420.0,117410.0,0.14457528]
[1753906598363,4.16681176,117420.0,117410.0,0.14457528]
[1753906598591,4.17532754,117420.0,117410.0,0.14457528]
[1753906598807,4.17532754,117420.0,117410.0,0.08097528]
[1753906599009,3.77739225,117420.0,117410.0,0.08097528]
[1753906599222,4.18384339,117420.0,117410.0,0.07797528]
[1753906599652,5.03104013,117420.0,117410.0,0.00212528]
[1753906600087,4.62458899,117420.0,117410.0,0.00212528]
[1753906600305,4.61607299,117420.0,117410.0,0.00212528]
[1753906600776,4.61507299,117420.0,117410.0,0.00012528]
[1753906600992,4.61607299,117420.0,117410.0,0.00012528]
[1753906601246,4.20962185,117420.0,117410.0,0.00112528]
[1753906601453,4.61607299,117420.0,117410.0,0.00112528]
[1753906601905,1.57983699,117420.0,117410.0,0.00112528]
[1753906602123,4.61607299,117420.0,117410.0,0.00112528]
[1753906602346,5.27186315,117420.0,117410.0,0.00112528]
[1753906603028,5.2585335,117420.0,117410.0,0.00112528]
[1753906603243,5.2585335,117420.0,117410.0,0.00012528]
[1753906603655,5.2605335,117420.0,117410.0,0.00012528]
[1753906603896,5.2595335,117420.0,117410.0,0.00012528]
[1753906604308,5.2605335,117420.0,117410.0,0.00012528]
[1753906604564,5.23619448,117420.0,117410.0,0.00012528]
[1753906604770,5.68659448,117420.0,117410.0,0.00012528]
[1753906605215,5.75312307,117420.0,117410.0,0.00012528]
[1753906605448,5.32972307,117420.0,117410.0,0.00012528]
[1753906605883,5.34305611,117420.0,117410.0,0.00012528]
[1753906606319,3.75512687,117390.0,117380.0,0.07785]
[1753906606534,4.31730445,117390.0,117380.0,0.02648761]
[1753906606749,4.32582306,117390.0,117380.0,0.02663283]
[1753906606979,4.31730445,117390.0,117380.0,0.02663283]
[1753906607188,4.33063841,117390.0,117380.0,0.02663283]
[1753906607395,4.34708791,117390.0,117380.0,0.02663283]
[1753906607603,4.34708794,117390.0,117380.0,0.02763283]
[1753906608048,4.3647763,117390.0,117380.0,0.02863283]
[1753906608491,4.36418975,117390.0,117380.0,0.02863283]
[1753906608697,4.37270807,117390.0,117380.0,0.02763283]
[1753906609114,4.36418975,117390.0,117380.0,0.02763283]
[1753906609368,4.36418968,117390.0,117380.0,0.02663283]
[1753906609595,4.38122624,117390.0,117380.0,0.07799522]
[1753906610052,4.36789221,117390.0,117380.0,0.07799522]
[1753906610529,4.35937389,117390.0,117380.0,0.07799522]
[1753906610723,3.93588648,117390.0,117380.0,0.07799522]
[1753906611010,4.35085565,117390.0,117380.0,0.07799522]
[1753906611249,4.35930599,117390.0,117380.0,0.07799522]
[1753906611484,4.36782424,117390.0,117380.0,0.07799522]
[1753906611696,4.3763427,117390.0,117380.0,0.07799522]
[1753906611933,4.37634306,117390.0,117380.0,0.07799522]
[1753906612583,4.35930628,117390.0,117380.0,0.07799522]
[1753906612799,4.35078803,117390.0,117380.0,0.08096522]
[1753906613009,4.3592988,117390.0,117380.0,0.08096522]
[1753906613220,4.36781734,117390.0,117380.0,0.08096522]
[1753906613439,4.6635255,117390.0,117380.0,0.00014522]
[1753906613652,4.67993532,117390.0,117380.0,0.00014522]
[1753906613870,4.67201862,117390.0,117380.0,0.00014522]
[1753906614074,4.67933374,117390.0,117380.0,0.00014522]
[1753906614288,4.22387898,117390.0,117380.0,0.11486522]
[1753906614506,4.36571975,117390.0,117380.0,0.14796522]
[1753906614723,4.36451918,117390.0,117380.0,0.14796522]
[1753906614935,3.52342174,117390.0,117380.0,0.14796522]
[1753906615153,4.06259288,117390.0,117380.0,0.14796522]
[1753906615371,4.07111098,117390.0,117380.0,0.14796522]
[1753906615637,4.07111091,117390.0,117380.0,0.14796522]
[1753906615816,4.06259288,117390.0,117380.0,0.14796522]
[1753906616048,4.14707018,117390.0,117380.0,0.14796522]
[1753906616265,4.01435018,117390.0,117380.0,0.14796522]
[1753906616482,4.14707018,117390.0,117380.0,0.14796522]
[1753906616687,1.11083418,117390.0,117380.0,0.14796522]
[1753906616917,4.14707018,117390.0,117380.0,0.14796522]
[1753906617741,4.1815554,117390.0,117380.0,0.14796522]
[1753906617896,4.19007372,117390.0,117380.0,0.14796522]
[1753906618103,4.19007372,117390.0,117380.0,0.07799522]
[1753906618310,4.39007372,117390.0,117380.0,0.00014522]
[1753906618721,4.39007372,117390.0,117380.0,0.07842522]
[1753906618918,4.37303723,117390.0,117380.0,0.11331522]
[1753906619119,4.3815554,117390.0,117380.0,0.14838522]
[1753906619600,4.37303723,117390.0,117380.0,0.14838522]
[1753906620010,4.38155533,117390.0,117380.0,0.14838522]
[1753906620225,4.39007365,117390.0,117380.0,0.14838522]
[1753906620444,4.39859211,117390.0,117380.0,0.14838522]
[1753906620658,4.38155533,117390.0,117380.0,0.14838522]
[1753906620879,4.0317992,117390.0,117380.0,0.14838522]
[1753906621096,4.08855986,117390.0,117380.0,0.14838522]
[1753906621317,4.0800419,117390.0,117380.0,0.14838522]
[1753906621547,3.92987288,117390.0,117380.0,0.14838522]
[1753906621797,0.06270844,117390.0,117380.0,0.55483636]
[1753906622065,0.02506135,117420.0,117380.0,0.55483636]
[1753906622301,0.52561,117410.0,117400.0,0.47135114]
[1753906622516,0.02299411,117450.0,117410.0,0.0649]
[1753906622755,0.02218746,117430.0,117420.0,0.47135114]
[1753906622981,0.47272,117440.0,117430.0,0.0649]
[1753906623192,3.90246934,117440.0,117430.0,0.06687]
[1753906623410,3.64694664,117440.0,117430.0,0.14824]
[1753906623626,3.2404955,117440.0,117430.0,0.14824]
[1753906623855,3.98694664,117440.0,117430.0,0.14824]
[1753906624064,3.98694664,117440.0,117430.0,0.14838533]
[1753906624065,3.2404555,117440.0,117430.0,0.14838533]
[1753906624279,3.51422664,117440.0,117430.0,0.14838533]
[1753906624500,4.5000041,117440.0,117430.0,0.07842533]
[1753906624718,4.51703355,117440.0,117430.0,0.07842533]
[1753906624942,4.10162241,117440.0,117430.0,0.07842533]
[1753906625155,4.32286235,117440.0,117430.0,0.00014533]
[1753906625367,4.34585646,117440.0,117430.0,0.00014533]
[1753906625822,4.36805706,117440.0,117430.0,0.00014533]
[1753906626052,4.3595423,117440.0,117430.0,0.00114533]
[1753906626260,4.3918423,117440.0,117430.0,0.00114533]
[1753906626468,4.3918423,117440.0,117430.0,0.00014533]
[1753906627124,4.3928423,117440.0,117430.0,0.00014533]
[1753906627555,4.3938423,117440.0,117430.0,0.00014533]
[1753906627734,4.3615423,117440.0,117430.0,0.00014533]
[1753906627942,4.3605423,117440.0,117430.0,0.00014533]
[1753906628149,4.3855423,117440.0,117430.0,0.00014533]
[1753906628383,4.4198423,117440.0,117430.0,0.00014533]
[1753906628596,4.39684819,117440.0,117430.0,0.00014533]
[1753906629024,1.39181219,117440.0,117430.0,0.00014533]
[1753906629231,4.39684819,117440.0,117430.0,0.00014533]
[1753906629440,4.45912386,117440.0,117430.0,0.00014533]
[1753906629741,4.48346288,117440.0,117430.0,0.00014533]
[1753906629948,4.50846288,117440.0,117430.0,0.00014533]
[1753906630105,4.47778721,117440.0,117430.0,0.00014533]
[1753906630310,4.52280072,117440.0,117430.0,0.00014533]
[1753906630514,4.72556072,117440.0,117430.0,0.00014533]
[1753906631160,4.72956072,117440.0,117430.0,0.00014533]
[1753906631378,4.72556072,117440.0,117430.0,0.00014533]